bitfinex/quotes_BTCUSD_20251021
["timestamp","ask_amount","ask_price","bid_price","bid_amount"]
[1761087765081,0.00402568,109320.0,109310.0,0.42676716]
[1761087765280,0.00402568,109320.0,109310.0,0.43676715]
[1761087765423,0.00402568,109320.0,109310.0,0.43776715]
[1761087766055,0.00402568,109320.0,109310.0,0.88132706]
[1761087766677,0.00402568,109320.0,109310.0,0.43776715]
[1761087766986,0.00402568,109320.0,109310.0,0.88132706]
[1761087767413,0.00402568,109320.0,109310.0,0.43776715]
[1761087767627,0.18697482,109320.0,109310.0,0.09181901]
[1761087767802,0.18697482,109320.0,109310.0,0.20857901]
[1761087767999,0.18697482,109320.0,109310.0,0.002]
[1761087768202,0.18697482,109320.0,109310.0,0.11876]
[1761087768997,0.18697482,109320.0,109310.0,0.11776]
[1761087769203,0.18697482,109320.0,109310.0,0.11676]
[1761087769428,0.00402568,109320.0,109310.0,0.24276129]
[1761087769645,0.00502568,109320.0,109310.0,0.43572715]
[1761087769866,0.00502568,109320.0,109310.0,0.42572716]
[1761087770286,0.00402568,109320.0,109310.0,0.42572716]
[1761087772098,0.00402568,109320.0,109310.0,0.42672716]
[1761087772515,0.00402568,109320.0,109310.0,1.11352705]
[1761087772695,0.01306568,109320.0,109310.0,1.11452705]
[1761087772895,0.11110568,109320.0,109310.0,1.11252705]
[1761087773270,0.0052,109330.0,109320.0,0.19294913]
[1761087773424,0.12196,109330.0,109320.0,0.73632804]
[1761087773655,0.12196,109330.0,109320.0,0.77251032]
[1761087773803,0.12196,109330.0,109320.0,0.32895041]
[1761087774004,0.12196,109330.0,109320.0,0.72895041]
[1761087774401,0.12196,109330.0,109320.0,0.65895042]
[1761087774598,0.12196,109330.0,109320.0,0.27276815]
[1761087774792,0.12196,109330.0,109320.0,0.27376815]
[1761087775422,0.0052,109330.0,109320.0,0.27276815]
[1761087775623,0.12196,109330.0,109320.0,0.27276815]
[1761087777635,0.0052,109330.0,109320.0,0.30995043]
[1761087777835,0.12192,109330.0,109320.0,0.27376815]
[1761087778313,0.3048524,109330.0,109320.0,0.27376815]
[1761087778515,0.3048524,109330.0,109320.0,0.09081901]
[1761087778744,0.3048524,109330.0,109320.0,0.08981901]
[1761087778865,0.00554756,109330.0,109320.0,0.30895043]
[1761087779069,0.12226756,109330.0,109320.0,0.30895043]
[1761087779272,0.12226756,109330.0,109320.0,0.27276815]
[1761087781478,0.12226756,109330.0,109320.0,0.27376815]
[1761087782328,0.00554756,109330.0,109320.0,0.30995043]
[1761087782540,0.12226756,109330.0,109320.0,0.30995043]
[1761087785272,0.00554756,109330.0,109320.0,1.10351033]
[1761087785473,0.00554756,109330.0,109320.0,1.11351032]
[1761087787171,0.00554756,109330.0,109320.0,1.23023032]
[1761087788636,0.0002,109340.0,109330.0,0.98649229]
[1761087788858,0.0002,109340.0,109330.0,1.11249358]
[1761087789658,0.0002,109340.0,109330.0,1.51249358]
[1761087789892,0.0002,109340.0,109330.0,1.50249359]
[1761087790085,0.0002,109340.0,109330.0,1.51249358]
[1761087790289,1e-08,109340.0,109330.0,1.51249358]
[1761087791205,1e-08,109340.0,109330.0,1.51349358]
[1761087792003,0.0002,109360.0,109330.0,1.11449358]
[1761087792202,0.0002,109400.0,109390.0,0.19283205]
[1761087792418,0.00069353,109400.0,109390.0,1.10239325]
[1761087792624,0.00069353,109400.0,109390.0,1.51239324]
[1761087792826,0.00069353,109400.0,109390.0,0.71883334]
[1761087793025,0.00069353,109400.0,109390.0,1.05883334]
[1761087793248,0.00069353,109400.0,109390.0,1.50239325]
[1761087793450,0.00069353,109400.0,109390.0,1.51339324]
[1761087793659,0.00069353,109400.0,109390.0,1.51439324]
[1761087793805,1e-08,109400.0,109390.0,1.63163324]
[1761087794807,1e-08,109400.0,109390.0,1.56478828]
[1761087795203,0.00243128,109400.0,109390.0,1.56378828]
[1761087795410,0.00243128,109400.0,109390.0,1.56278828]
[1761087795607,0.00243128,109400.0,109390.0,1.56478828]
[1761087795927,0.00243128,109400.0,109390.0,1.17707334]
[1761087796148,0.00243128,109400.0,109390.0,1.17807334]
[1761087796348,0.00243128,109400.0,109390.0,0.841819]
[1761087796541,0.00243128,109400.0,109390.0,0.61465107]
[1761087796740,0.00243128,109400.0,109390.0,0.27465107]
[1761087796961,0.00243128,109400.0,109390.0,0.31083335]
[1761087797190,0.00243128,109400.0,109390.0,0.30983335]
[1761087797907,0.19193078,109420.0,109390.0,0.09081901]
[1761087797908,0.55116688,109420.0,109390.0,0.09081901]
[1761087798108,0.54204573,109400.0,109390.0,0.09081901]
[1761087798307,0.65944573,109400.0,109390.0,0.08981901]
[1761087798505,0.65944573,109400.0,109390.0,0.09081901]
[1761087799080,0.30021535,109400.0,109390.0,0.08981901]
[1761087799411,0.30021535,109400.0,109390.0,0.27265107]
[1761087800397,0.30021535,109400.0,109390.0,0.08981901]
[1761087800619,0.18284093,109390.0,109370.0,0.1828655]
[1761087800822,0.18284093,109390.0,109380.0,0.08981901]
[1761087801236,0.18284093,109390.0,109380.0,0.27266779]
[1761087801404,0.35923038,109400.0,109390.0,0.18283206]
[1761087801608,0.11732,109400.0,109390.0,0.08981901]
[1761087801848,0.30013535,109400.0,109390.0,0.08981901]
[1761087802854,0.18284713,109390.0,109370.0,0.1828655]
[1761087803008,0.18284713,109390.0,109380.0,0.08981901]
[1761087803211,0.18284713,109390.0,109380.0,0.27266779]
[1761087803530,0.30012713,109390.0,109380.0,0.27266779]
[1761087803933,0.19195611,109400.0,109380.0,0.27266779]
[1761087804177,0.19195611,109400.0,109390.0,0.01584299]
[1761087804378,0.30919611,109400.0,109390.0,0.01584299]
[1761087806079,0.19195611,109400.0,109390.0,0.01584299]
[1761087806281,0.30919611,109400.0,109390.0,0.01584299]
[1761087808136,0.19195611,109400.0,109390.0,0.01584299]
[1761087808339,0.30915611,109400.0,109390.0,0.01584299]
[1761087809301,0.54237681,109410.0,109390.0,0.28849406]
[1761087809501,0.11712,109400.0,109390.0,0.27265107]
[1761087809700,0.00034718,109410.0,109390.0,0.27265107]
[1761087809902,0.52314673,109410.0,109400.0,0.01828153]
[1761087810129,0.64026673,109410.0,109400.0,0.01828153]
[1761087810976,0.18283857,109390.0,109380.0,0.18284878]
[1761087811157,0.29999857,109390.0,109380.0,0.27266779]
[1761087811359,0.00034718,109410.0,109400.0,0.18281535]
[1761087811508,0.11750718,109410.0,109400.0,0.29091589]
[1761087811713,0.11770718,109410.0,109400.0,0.27263436]
[1761087812560,0.00034718,109410.0,109400.0,0.27263436]
[1761087812766,0.11770718,109410.0,109400.0,0.27363436]
[1761087814461,0.00034718,109410.0,109400.0,0.27363436]
[1761087814788,0.11770718,109410.0,109400.0,0.27363436]
[1761087815223,0.00034718,109410.0,109400.0,0.27363436]
[1761087815439,0.11766718,109410.0,109400.0,0.27363436]
[1761087817003,0.00034718,109410.0,109400.0,0.66904702]
[1761087817217,0.00034718,109410.0,109400.0,0.67904701]
[1761087817442,0.00034718,109410.0,109400.0,1.01904701]
[1761087817647,0.00034718,109410.0,109400.0,1.029047]
[1761087818417,0.00034718,109410.0,109400.0,1.028047]
[1761087818603,0.00034718,109410.0,109400.0,1.431047]
[1761087820253,0.00034718,109410.0,109400.0,1.42104701]
[1761087820473,0.00034718,109410.0,109400.0,1.431047]
[1761087820667,0.00034718,109410.0,109400.0,1.42104701]
[1761087820868,0.00034718,109410.0,109400.0,1.05181664]
[1761087821074,0.00034718,109410.0,109400.0,1.06181663]
[1761087821285,0.11798718,109410.0,109400.0,1.07181662]
[1761087821588,0.11798718,109410.0,109400.0,1.431047]
[1761087821746,0.11798718,109410.0,109400.0,1.429047]
[1761087822184,0.11798718,109410.0,109400.0,1.430047]
[1761087822612,0.11798718,109410.0,109400.0,1.429047]
[1761087822938,0.11798718,109410.0,109400.0,1.428047]
[1761087823321,0.11798718,109410.0,109400.0,1.429047]
[1761087823522,0.11798718,109410.0,109400.0,1.428047]
[1761087823868,0.11798718,109410.0,109400.0,1.430047]
[1761087825645,0.11798718,109410.0,109400.0,1.42004701]
[1761087825813,0.11798718,109410.0,109400.0,1.430047]
[1761087827859,0.00034718,109410.0,109400.0,1.430047]
[1761087828472,0.00034718,109410.0,109400.0,1.06081663]
[1761087829250,0.00034718,109410.0,109400.0,1.07081662]
[1761087829612,0.00034718,109410.0,109400.0,1.430047]
[1761087829932,0.00034718,109410.0,109400.0,1.42004701]
[1761087830124,0.00034718,109410.0,109400.0,1.430047]
[1761087831737,0.00034718,109410.0,109400.0,1.42004701]
[1761087832034,0.00034718,109410.0,109400.0,0.66081663]
[1761087832230,0.00034718,109410.0,109400.0,0.67081662]
[1761087832433,0.00034718,109410.0,109400.0,1.07081662]
[1761087832600,0.00034718,109410.0,109400.0,1.430047]
[1761087834203,0.00034718,109410.0,109400.0,0.88800127]
[1761087834403,0.11770718,109410.0,109400.0,0.61463436]
[1761087834835,0.30050582,109410.0,109400.0,0.27463436]
[1761087835410,0.11770718,109410.0,109400.0,0.27463436]
[1761087835615,0.11770718,109410.0,109400.0,0.27363436]
[1761087836213,0.11770718,109410.0,109400.0,0.27263436]
[1761087836819,0.30050582,109410.0,109400.0,0.27363436]
[1761087837415,0.30050582,109410.0,109400.0,0.27263436]
[1761087837630,0.30050582,109410.0,109400.0,0.27363436]
[1761087837826,0.11770718,109410.0,109400.0,0.27363436]
[1761087840943,0.30050582,109410.0,109400.0,0.09081901]
[1761087841224,0.6597362,109410.0,109400.0,0.001]
[1761087841460,0.76326762,109410.0,109400.0,0.001]
[1761087841950,0.67900091,109410.0,109400.0,0.001]
[1761087842186,0.31977053,109410.0,109400.0,0.001]
[1761087842425,0.18281535,109400.0,109380.0,0.19199049]
[1761087842656,0.18281535,109400.0,109390.0,0.08981901]
[1761087842881,0.30017535,109400.0,109390.0,0.27265107]
[1761087843590,0.18314582,109410.0,109390.0,0.27265107]
[1761087843847,0.11736,109400.0,109390.0,0.27265107]
[1761087844019,0.11736,109400.0,109390.0,0.27365107]
[1761087844949,0.30017535,109400.0,109390.0,0.27365107]
[1761087845107,0.30017535,109400.0,109390.0,0.27265107]
[1761087846394,0.30017535,109400.0,109390.0,0.27365107]
[1761087846619,0.65940573,109400.0,109390.0,0.001]
[1761087847488,0.30017535,109400.0,109390.0,0.001]
[1761087848446,0.00034718,109410.0,109390.0,0.29193427]
[1761087848652,0.00034718,109410.0,109390.0,0.09081901]
[1761087848653,0.11728,109400.0,109390.0,0.09081901]
[1761087848899,0.30009535,109400.0,109390.0,0.27365107]
[1761087849103,0.11728,109400.0,109390.0,0.27365107]
[1761087849254,0.18314651,109410.0,109400.0,0.18281535]
[1761087849482,0.30046651,109410.0,109390.0,0.27265107]
[1761087851389,0.18314651,109410.0,109390.0,0.27265107]
[1761087851802,0.11728,109400.0,109390.0,0.27265107]
[1761087852245,0.18314651,109410.0,109390.0,0.27265107]
[1761087852426,0.11728,109400.0,109390.0,0.27265107]
[1761087852971,0.11728,109400.0,109390.0,0.27365107]
[1761087854864,0.18314651,109410.0,109400.0,0.18281535]
[1761087855195,0.30042651,109410.0,109400.0,0.18281535]
[1761087856834,0.30034651,109410.0,109400.0,0.18281535]
[1761087859252,0.00034718,109410.0,109400.0,0.18281535]
[1761087859605,0.00034718,109410.0,109400.0,0.76887804]
[1761087859806,0.00034718,109410.0,109400.0,1.20771651]
[1761087860011,0.00034718,109410.0,109400.0,1.62771649]
[1761087860617,0.00014799,109420.0,109410.0,0.96457851]
[1761087861143,0.00014799,109420.0,109410.0,1.05439752]
[1761087862172,0.00014799,109420.0,109410.0,1.05539752]
[1761087862731,0.00014799,109420.0,109410.0,1.05639752]
[1761087863370,0.00014799,109420.0,109410.0,1.45639752]
[1761087865196,0.00014799,109420.0,109410.0,1.05639752]
[1761087865396,0.00014799,109420.0,109410.0,1.0886172]
[1761087865637,0.00014799,109420.0,109410.0,1.4886172]
[1761087866576,0.00049512,109420.0,109410.0,1.4886172]
[1761087868486,0.00049512,109420.0,109410.0,1.53479947]
[1761087872439,0.015,109430.0,109420.0,0.53278193]
[1761087872755,1e-08,109430.0,109420.0,1.13774407]
[1761087873317,1e-08,109430.0,109420.0,1.06878321]
[1761087873505,1e-08,109430.0,109420.0,1.62760308]
[1761087873717,1e-08,109430.0,109420.0,1.62860308]
[1761087873964,1e-08,109430.0,109420.0,1.62960308]
[1761087874308,1e-08,109430.0,109420.0,1.62860308]
[1761087875046,1e-08,109430.0,109420.0,1.62760308]
[1761087875647,1e-08,109430.0,109420.0,1.62960308]
[1761087876064,1e-08,109430.0,109420.0,1.63160308]
[1761087877328,1e-08,109430.0,109420.0,1.69997456]
[1761087878162,0.0003471,109430.0,109420.0,1.69997456]
[1761087882136,1e-08,109430.0,109420.0,1.69997456]
[1761087885074,1e-08,109430.0,109420.0,1.81767457]
[1761087885315,1e-08,109430.0,109420.0,1.82767456]
[1761087885525,1e-08,109430.0,109420.0,1.81767457]
[1761087885734,1e-08,109430.0,109420.0,1.82767456]
[1761087886845,1e-08,109430.0,109420.0,1.71063456]
[1761087887061,1e-08,109430.0,109420.0,1.92627456]
[1761087888163,1e-08,109430.0,109420.0,1.91627457]
[1761087888375,1e-08,109430.0,109420.0,1.92627456]
[1761087888987,1e-08,109430.0,109420.0,1.92623456]
[1761087890822,1e-08,109430.0,109420.0,1.92619456]
[1761087892335,1e-08,109430.0,109420.0,1.91619457]
[1761087892541,1e-08,109430.0,109420.0,1.92619456]
[1761087892894,1e-08,109430.0,109420.0,1.91619457]
[1761087893098,1e-08,109430.0,109420.0,1.92619456]
[1761087893274,1e-08,109430.0,109420.0,1.91619457]
[1761087893478,1e-08,109430.0,109420.0,1.92619456]
[1761087894531,1e-08,109430.0,109420.0,1.91619457]
[1761087894732,1e-08,109430.0,109420.0,1.92619456]
[1761087894987,1e-08,109430.0,109420.0,1.71063456]
[1761087895192,1e-08,109430.0,109420.0,0.81430094]
[1761087895348,1e-08,109430.0,109420.0,0.27660095]
[1761087895749,1e-08,109430.0,109420.0,0.39332095]
[1761087895960,1e-08,109430.0,109420.0,0.42950323]
[1761087896333,1e-08,109430.0,109420.0,0.39332095]
[1761087896528,1e-08,109430.0,109420.0,0.39132095]
[1761087896759,1e-08,109430.0,109420.0,0.42850323]
[1761087897355,1e-08,109430.0,109420.0,0.42550323]
[1761087897786,1e-08,109430.0,109420.0,0.42650323]
[1761087898260,1e-08,109430.0,109420.0,0.42550323]
[1761087898462,1e-08,109430.0,109420.0,0.42650323]
[1761087898657,1e-08,109430.0,109420.0,0.42750323]
[1761087900564,1e-08,109430.0,109420.0,1.2092831]
[1761087900804,1e-08,109430.0,109420.0,1.21928309]
[1761087901004,1e-08,109430.0,109420.0,1.22928308]
[1761087901371,1e-08,109430.0,109420.0,1.35698308]
[1761087901587,1e-08,109430.0,109420.0,1.22928308]
[1761087902007,1e-08,109430.0,109420.0,1.22828308]
[1761087902209,1e-08,109430.0,109420.0,1.22928308]
[1761087902419,1e-08,109430.0,109420.0,1.29938687]
[1761087903486,1e-08,109430.0,109420.0,1.17066688]
[1761087903699,1e-08,109430.0,109420.0,1.38622688]
[1761087903913,1e-08,109430.0,109420.0,1.39822687]
[1761087904162,1e-08,109430.0,109420.0,1.79822687]
[1761087904332,1e-08,109430.0,109420.0,1.79622687]
[1761087905157,1e-08,109430.0,109420.0,1.79822687]
[1761087905744,1e-08,109430.0,109420.0,1.78822688]
[1761087905952,1e-08,109430.0,109420.0,1.79822687]
[1761087906609,1e-08,109430.0,109420.0,1.82369591]
[1761087907033,1e-08,109430.0,109420.0,1.82569591]
[1761087907789,1e-08,109430.0,109420.0,1.81569592]
[1761087908001,1e-08,109430.0,109420.0,1.82569591]
[1761087908446,1e-08,109430.0,109420.0,1.05406998]
[1761087908659,1e-08,109430.0,109420.0,1.58510081]
[1761087908865,1e-08,109430.0,109420.0,1.63128308]
[1761087909560,1e-08,109430.0,109420.0,1.61928309]
[1761087909793,1e-08,109430.0,109420.0,1.62928308]
[1761087910023,1e-08,109430.0,109420.0,1.63128308]
[1761087910470,1e-08,109430.0,109420.0,1.62928308]
[1761087910687,1e-08,109430.0,109420.0,1.17550322]
[1761087910905,1e-08,109430.0,109420.0,1.63028308]
[1761087911135,1e-08,109430.0,109420.0,1.61928309]
[1761087911359,1e-08,109430.0,109420.0,1.62928308]
[1761087911560,1e-08,109430.0,109420.0,1.63028308]
[1761087911823,1e-08,109430.0,109420.0,1.75798308]
[1761087912293,1e-08,109430.0,109420.0,1.74798309]
[1761087912493,1e-08,109430.0,109420.0,1.75798308]
[1761087913382,1e-08,109430.0,109420.0,1.74798309]
[1761087913553,1e-08,109430.0,109420.0,1.75798308]
[1761087914404,1e-08,109430.0,109420.0,1.74798309]
[1761087914599,1e-08,109430.0,109420.0,1.75798308]
[1761087916252,1e-08,109430.0,109420.0,1.74798309]
[1761087916465,1e-08,109430.0,109420.0,1.75798308]
[1761087917171,0.18269913,109470.0,109450.0,0.18272001]
[1761087917392,0.19198193,109470.0,109460.0,0.11672]
[1761087918918,0.19198193,109470.0,109460.0,0.29943514]
[1761087919272,0.1933697,109470.0,109460.0,0.29943514]
[1761087919478,0.1933697,109470.0,109460.0,0.11672]
[1761087919679,0.1933697,109470.0,109460.0,0.29943514]
[1761087920444,0.00153565,109470.0,109460.0,0.38925415]
[1761087921816,0.00153565,109470.0,109460.0,0.78444148]
[1761087922160,0.00153565,109470.0,109460.0,0.78544148]
[1761087922576,0.00153565,109470.0,109460.0,1.52444148]
[1761087922952,0.00153565,109470.0,109460.0,1.52544148]
[1761087923877,0.00153565,109470.0,109460.0,1.52644148]
[1761087924977,0.00153565,109470.0,109460.0,0.79125415]
[1761087925620,0.00153565,109470.0,109460.0,0.82743643]
[1761087927650,0.00153565,109470.0,109460.0,1.18644148]
[1761087928031,0.00153565,109470.0,109460.0,1.52644148]
[1761087929220,0.00153565,109470.0,109460.0,1.55418298]
[1761087929416,0.00153565,109470.0,109460.0,1.19517793]
[1761087929664,0.00153565,109470.0,109460.0,1.55418298]
[1761087930702,0.00153565,109470.0,109460.0,0.65071643]
[1761087930822,0.00153565,109470.0,109460.0,0.42743643]
[1761087931030,0.00153565,109470.0,109460.0,0.78644148]
[1761087934039,0.00153565,109470.0,109460.0,0.27453415]
[1761087934197,0.00153565,109470.0,109460.0,0.39121415]
[1761087935690,0.1842341,109470.0,109460.0,0.20849901]
[1761087935943,0.1842341,109470.0,109460.0,0.39121415]
[1761087936247,0.00153565,109470.0,109460.0,0.39121415]
[1761087936893,0.1842341,109470.0,109460.0,0.39121415]
[1761087937095,0.00153565,109470.0,109460.0,0.39121415]
[1761087937838,0.00153565,109470.0,109460.0,0.27453415]
[1761087938040,0.00153565,109470.0,109460.0,0.39121415]
[1761087938469,0.00153565,109470.0,109460.0,0.27453415]
[1761087938666,0.1842341,109470.0,109460.0,0.20849901]
[1761087938871,0.1842341,109470.0,109460.0,0.39121415]
[1761087939308,0.1842341,109470.0,109460.0,0.39021415]
[1761087939868,0.00153565,109470.0,109460.0,0.39021415]
[1761087940982,0.00153565,109470.0,109460.0,0.38921415]
[1761087941179,0.1842341,109470.0,109460.0,0.39021415]
[1761087942219,0.00153565,109470.0,109460.0,0.39021415]
[1761087942768,0.44042016,109480.0,109460.0,0.39021415]
[1761087942980,0.18269845,109470.0,109460.0,0.39021415]
[1761087943218,0.33543681,109470.0,109460.0,0.39021415]
[1761087944415,0.33543681,109470.0,109460.0,0.38921415]
[1761087944960,0.25273836,109470.0,109460.0,0.38921415]
[1761087945346,0.1876818,109480.0,109460.0,0.38921415]
[1761087945552,0.44042016,109480.0,109460.0,0.39021415]
[1761087946119,0.43542016,109480.0,109460.0,0.38921415]
[1761087949604,0.1826818,109480.0,109460.0,0.38921415]
[1761087949814,0.43542016,109480.0,109470.0,0.18269845]
[1761087950014,0.43542016,109480.0,109460.0,0.38921415]
[1761087951939,0.43542016,109480.0,109470.0,0.18269845]
[1761087952360,0.19179944,109490.0,109470.0,0.18269845]
[1761087952561,0.25273836,109480.0,109470.0,0.18269845]
[1761087952784,0.43542012,109480.0,109470.0,0.18269845]
[1761087953153,0.43542012,109480.0,109460.0,0.38921415]
[1761087953333,0.25273836,109470.0,109460.0,0.38921415]
[1761087953755,0.43542012,109480.0,109460.0,0.38921415]
[1761087954453,0.19179944,109490.0,109480.0,0.18268176]
[1761087954659,0.71095834,109490.0,109470.0,0.27251746]
[1761087954846,0.43542012,109480.0,109470.0,0.08981901]
[1761087955202,0.25273836,109480.0,109470.0,0.38919746]
[1761087955566,0.25308521,109480.0,109470.0,0.38919746]
[1761087955926,0.43576697,109480.0,109470.0,0.20649901]
[1761087956277,0.18302861,109480.0,109470.0,0.38919746]
[1761087956480,0.43576697,109480.0,109470.0,0.38919746]
[1761087957374,0.43576697,109480.0,109470.0,0.39019746]
[1761087957776,1.09126197,109480.0,109470.0,0.001]
[1761087958610,1.02850533,109480.0,109470.0,0.001]
[1761087958772,0.00034685,109480.0,109470.0,0.18269845]
[1761087959186,0.18302999,109480.0,109460.0,0.30439263]
[1761087959441,0.18302999,109480.0,109460.0,0.39421164]
[1761087959577,0.43576835,109480.0,109460.0,0.39421164]
[1761087961846,0.18269845,109470.0,109460.0,0.39421164]
[1761087962542,0.43576835,109480.0,109460.0,0.39421164]
[1761087962775,0.43302813,109480.0,109460.0,0.39421164]
[1761087964110,0.43302813,109480.0,109460.0,0.39521164]
[1761087964554,0.43302813,109480.0,109460.0,0.39421164]
[1761087964781,0.18269845,109470.0,109460.0,0.21149901]
[1761087964986,0.30847944,109490.0,109470.0,0.18269829]
[1761087965178,0.43542065,109480.0,109460.0,0.39421415]
[1761087965392,0.18269845,109470.0,109460.0,0.39421415]
[1761087965590,0.18269845,109470.0,109460.0,0.21149901]
[1761087965869,0.43543681,109470.0,109460.0,0.005]
[1761087966101,0.49724872,109470.0,109460.0,0.12168]
[1761087966438,0.49724872,109470.0,109460.0,0.12268]
[1761087966886,0.49724872,109470.0,109460.0,0.12168]
[1761087967898,0.25273836,109470.0,109460.0,0.30439514]
[1761087968297,0.43543681,109470.0,109460.0,0.30439514]
[1761087968640,0.43543681,109470.0,109460.0,0.18771514]
[1761087968789,0.43543681,109470.0,109460.0,0.30439514]
[1761087969321,0.43543681,109470.0,109460.0,0.30539514]
[1761087969583,0.18268303,109480.0,109460.0,0.30539514]
[1761087969837,0.25273836,109470.0,109460.0,0.30539514]
[1761087970049,0.43543681,109470.0,109460.0,0.30539514]
[1761087970564,0.43543681,109470.0,109460.0,0.12168]
[1761087971173,0.4804225,109470.0,109460.0,0.12168]
[1761087971387,1.39759353,109470.0,109460.0,0.005]
[1761087971594,1.44030074,109470.0,109460.0,0.005]
[1761087971805,1.41692463,109470.0,109460.0,0.005]
[1761087972439,1.41692463,109470.0,109460.0,0.006]
[1761087972641,1.50674364,109470.0,109460.0,0.006]
[1761087972838,1.50674364,109470.0,109460.0,0.005]
[1761087973248,1.50774364,109470.0,109460.0,0.005]
[1761087973618,0.52274853,109440.0,109430.0,0.00677251]
[1761087973815,1.28096361,109440.0,109430.0,0.00692039]
[1761087974041,1.02822525,109440.0,109430.0,0.00692039]
[1761087975443,1.02822525,109440.0,109430.0,0.00792039]
[1761087975842,0.52274853,109440.0,109430.0,0.00692039]
[1761087976052,1.02822525,109440.0,109430.0,0.00692039]
[1761087976830,1.05250044,109440.0,109430.0,0.00692039]
[1761087978745,0.88436511,109440.0,109430.0,0.00692039]
[1761087981787,1.2217065,109440.0,109430.0,0.00692039]
[1761087982105,1.31152551,109440.0,109430.0,0.00692039]
[1761087982666,1.30878429,109440.0,109430.0,0.00692039]
[1761087983625,0.18279864,109410.0,109400.0,0.005]
[1761087983780,0.52014003,109410.0,109400.0,0.00514799]
[1761087984176,0.52014003,109410.0,109400.0,0.00653651]
[1761087985255,0.52014003,109410.0,109400.0,0.00753651]
[1761087985619,0.18279864,109410.0,109400.0,0.00753651]
[1761087985813,0.52014003,109410.0,109400.0,0.00753651]
[1761087987441,0.63681778,109420.0,109400.0,0.09735552]
[1761087987773,0.18279864,109410.0,109400.0,0.09735552]
[1761087988408,0.18279864,109410.0,109400.0,0.09635552]
[1761087989650,0.52014003,109410.0,109400.0,0.09635552]
[1761087990088,0.18279864,109410.0,109400.0,0.09635552]
[1761087990443,0.18279864,109410.0,109400.0,0.09735552]
[1761087992583,0.52014003,109410.0,109400.0,0.09735552]
[1761087998188,0.18279639,109420.0,109400.0,0.09735552]
[1761087998345,0.34,109420.0,109400.0,0.2984524]
[1761087998547,0.18279864,109410.0,109400.0,0.28017087]
[1761087998751,0.18279864,109410.0,109400.0,0.09735552]
[1761087999321,0.18279864,109410.0,109400.0,0.09635552]
[1761088000565,0.18279864,109410.0,109400.0,0.09735552]
[1761088000785,0.52014003,109410.0,109400.0,0.09735552]
[1761088000992,0.52014003,109410.0,109400.0,0.21403552]
[1761088003567,0.18279864,109410.0,109400.0,0.21403552]
[1761088006354,0.18279864,109410.0,109400.0,0.39685087]
[1761088006556,0.86012334,109420.0,109400.0,0.39685087]
[1761088006695,0.18279864,109410.0,109400.0,0.39685087]
[1761088008092,0.18279864,109410.0,109400.0,0.21403552]
[1761088008500,0.52014003,109410.0,109400.0,0.21303552]
[1761088009312,0.52014003,109410.0,109400.0,0.39585087]
[1761088009514,0.67734139,109420.0,109400.0,0.39685087]
[1761088009730,0.86012344,109420.0,109400.0,0.39685087]
[1761088010151,0.18279864,109410.0,109400.0,0.39685087]
[1761088010356,0.19191383,109430.0,109410.0,0.18279864]
[1761088010533,0.21380451,109440.0,109420.0,0.29942194]
[1761088010718,0.21654573,109440.0,109430.0,0.18276523]
[1761088011074,0.0337972,109440.0,109420.0,0.38924095]
[1761088011225,0.55654668,109440.0,109430.0,0.18276523]
[1761088011751,0.55654668,109440.0,109420.0,0.38924095]
[1761088012345,0.18276523,109430.0,109420.0,0.38924095]
[1761088013326,0.36465978,109440.0,109430.0,0.18276523]
[1761088013530,0.36465978,109440.0,109420.0,0.38924095]
[1761088013531,0.54740831,109440.0,109420.0,0.38924095]
[1761088013737,0.18276523,109430.0,109420.0,0.20645901]
[1761088013935,0.18276523,109430.0,109420.0,0.38924095]
[1761088017258,0.60992563,109430.0,109420.0,0.20645901]
[1761088017492,0.60992563,109430.0,109420.0,0.20641901]
[1761088017663,0.60992563,109430.0,109420.0,0.38920095]
[1761088018413,0.27258424,109430.0,109420.0,0.38920095]
[1761088018643,0.18276523,109430.0,109420.0,0.38920095]
[1761088018989,0.18276523,109430.0,109420.0,0.08981901]
[1761088019197,0.52010662,109430.0,109420.0,0.20641901]
[1761088019390,0.18276523,109430.0,109420.0,0.20641901]
[1761088020207,0.60992563,109430.0,109420.0,0.20641901]
[1761088020431,0.18279403,109420.0,109400.0,0.19849262]
[1761088020634,0.52013542,109420.0,109410.0,0.20641901]
[1761088020889,0.18279403,109420.0,109410.0,0.38921765]
[1761088021272,0.19190349,109430.0,109410.0,0.38921765]
[1761088021479,0.18278194,109420.0,109410.0,0.38921765]
[1761088021821,0.52924488,109430.0,109410.0,0.38921765]
[1761088022034,0.18278194,109420.0,109410.0,0.20641901]
[1761088022231,0.18278194,109420.0,109410.0,0.38921765]
[1761088022647,0.18278194,109420.0,109410.0,0.20641901]
[1761088022818,0.18278194,109420.0,109410.0,0.38921765]
[1761088023187,0.18278194,109420.0,109410.0,0.20641901]
[1761088024193,0.18278194,109420.0,109410.0,0.20741901]
[1761088024442,0.18278194,109420.0,109410.0,0.39021765]
[1761088024807,0.52924488,109430.0,109410.0,0.39021765]
[1761088025003,0.18278194,109420.0,109410.0,0.39021765]
[1761088025725,0.18278194,109420.0,109410.0,0.38921765]
[1761088026286,0.52924488,109430.0,109410.0,0.38921765]
[1761088026487,0.00913826,109430.0,109420.0,0.18278194]
[1761088026692,0.54740838,109440.0,109420.0,0.29087914]
[1761088026876,0.54740838,109440.0,109430.0,0.1166]
[1761088027261,0.00038459,109440.0,109430.0,0.74480215]
[1761088027503,0.00038459,109440.0,109430.0,0.72652563]
[1761088027708,0.00038459,109440.0,109430.0,0.42536652]
[1761088028498,0.00038459,109440.0,109430.0,0.42636652]
[1761088028702,0.00038459,109440.0,109430.0,0.20737901]
[1761088028899,0.00038459,109440.0,109430.0,0.39014424]
[1761088029102,0.00038459,109440.0,109430.0,0.20737901]
[1761088029303,0.67734139,109440.0,109430.0,0.001]
[1761088029503,1.28725032,109440.0,109430.0,0.001]
[1761088029742,0.94990893,109440.0,109430.0,0.001]
[1761088030086,0.86008992,109440.0,109430.0,0.001]
[1761088030486,0.18278492,109420.0,109400.0,0.18935049]
[1761088030692,0.18278492,109420.0,109410.0,0.08981901]
[1761088030892,0.18278492,109420.0,109410.0,0.20637901]
[1761088031101,0.18278492,109420.0,109410.0,0.38917765]
[1761088031909,0.18278492,109420.0,109410.0,0.20637901]
[1761088032148,0.52278492,109420.0,109410.0,0.20637901]
[1761088032350,0.52278492,109420.0,109400.0,0.12309651]
[1761088032351,0.18279864,109410.0,109400.0,0.12309651]
[1761088032554,0.18279864,109410.0,109400.0,0.21291552]
[1761088033451,0.18279864,109410.0,109400.0,0.09635552]
[1761088033661,0.70351002,109410.0,109400.0,0.00653651]
[1761088033908,1.04351002,109410.0,109400.0,0.00653651]
[1761088034592,1.04351002,109410.0,109400.0,0.00753651]
[1761088035011,1.04351002,109410.0,109400.0,0.00653651]
[1761088035216,1.16007002,109410.0,109400.0,0.00653651]
[1761088036252,1.08107123,109410.0,109400.0,0.00653651]